[Event "*** Titled Tuesday Blitz"]
[Site "Chess.com"]
[Date "2020.11.03"]
[Round "7"]
[White "gmmoranda"]
[Black "Korchmar_Vasiliy"]
[Result "1-0"]
[WhiteElo "2882"]
[BlackElo "2622"]
[TimeControl "180+1"]
[EndTime "11:20:01 PST"]
[Termination "gmmoranda won on time"]

1. d4 {[%clk 0:03:00.9]} 1... Nf6 {[%clk 0:02:59.4]} 2. c4 {[%clk 0:03:01.2]}
2... c6 {[%clk 0:02:58.8]} 3. Nc3 {[%clk 0:03:01.1]} 3... d5 {[%clk 0:02:59]} 4.
e3 {[%clk 0:03:01.6]} 4... e6 {[%clk 0:02:57.2]} 5. Nf3 {[%clk 0:03:01.9]} 5...
Nbd7 {[%clk 0:02:49.1]} 6. Bd3 {[%clk 0:03:01.8]} 6... dxc4 {[%clk 0:02:47.5]}
7. Bxc4 {[%clk 0:03:02.7]} 7... b5 {[%clk 0:02:46.9]} 8. Bd3 {[%clk 0:03:03]}
8... Bd6 {[%clk 0:02:46.4]} 9. O-O {[%clk 0:03:02.8]} 9... O-O {[%clk
0:02:45.7]} 10. Qc2 {[%clk 0:03:03.1]} 10... Bb7 {[%clk 0:02:39.4]} 11. Ng5
{[%clk 0:03:03.2]} 11... Bxh2+ {[%clk 0:02:29.3]} 12. Kxh2 {[%clk 0:03:04.1]}
12... Ng4+ {[%clk 0:02:29.7]} 13. Kg1 {[%clk 0:03:04]} 13... Qxg5 {[%clk
0:02:30.2]} 14. f3 {[%clk 0:03:04.6]} 14... Ngf6 {[%clk 0:02:16.4]} 15. e4
{[%clk 0:03:04.8]} 15... Qh4 {[%clk 0:02:15.6]} 16. Ne2 {[%clk 0:03:04.5]} 16...
Rfc8 {[%clk 0:02:04.2]} 17. Be3 {[%clk 0:02:53.2]} 17... a5 {[%clk 0:01:36.3]}
18. Rac1 {[%clk 0:02:50.7]} 18... b4 {[%clk 0:01:31.2]} 19. Qd2 {[%clk
0:02:47.6]} 19... h6 {[%clk 0:01:29.2]} 20. g3 {[%clk 0:02:31.3]} 20... Qh3
{[%clk 0:01:19.3]} 21. Rf2 {[%clk 0:02:29.8]} 21... e5 {[%clk 0:01:19.8]} 22.
Rh2 {[%clk 0:02:17.8]} 22... Qe6 {[%clk 0:01:19.1]} 23. Bc4 {[%clk 0:02:18.1]}
23... Qe7 {[%clk 0:01:19.6]} 24. Bxh6 {[%clk 0:02:18.2]} 24... Nh7 {[%clk
0:00:53.7]} 25. Be3 {[%clk 0:02:02]} 25... exd4 {[%clk 0:00:33.8]} 26. Nxd4
{[%clk 0:02:00]} 26... Ne5 {[%clk 0:00:34.3]} 27. Be2 {[%clk 0:01:59.9]} 27...
Rd8 {[%clk 0:00:30.3]} 28. Qe1 {[%clk 0:01:41.9]} 28... Ng5 {[%clk 0:00:27]} 29.
Qf2 {[%clk 0:01:38.3]} 29... Ba6 {[%clk 0:00:18.5]} 30. Bxa6 {[%clk 0:01:23]}
30... Rxd4 {[%clk 0:00:15.7]} 31. Be2 {[%clk 0:01:10.8]} 31... Nd3 {[%clk
0:00:15.1]} 32. Bxd3 {[%clk 0:01:08.2]} 32... Rxd3 {[%clk 0:00:16]} 33. Kg2
{[%clk 0:01:07.4]} 33... Nxe4 {[%clk 0:00:07.8]} 34. Qe2 {[%clk 0:01:02.4]} 1-0

[Event "*** Titled Tuesday Blitz"]
[Site "Chess.com"]
[Date "2020.11.03"]
[Round "7"]
[White "Piotrek1979"]
[Black "RobertoJBM"]
[Result "1/2-1/2"]
[WhiteElo "2481"]
[BlackElo "2795"]
[TimeControl "180+1"]
[EndTime "11:20:04 PST"]
[Termination "Game drawn by repetition"]

1. Nf3 {[%clk 0:01:58.4]} 1... d5 {[%clk 0:02:58.3]} 2. g3 {[%clk 0:01:59.3]}
2... c6 {[%clk 0:02:58.2]} 3. Bg2 {[%clk 0:02:00.2]} 3... Nf6 {[%clk 0:02:58.7]}
4. O-O {[%clk 0:02:00.9]} 4... Bf5 {[%clk 0:02:59.1]} 5. d3 {[%clk 0:02:01.8]}
5... Nbd7 {[%clk 0:02:58.6]} 6. Nbd2 {[%clk 0:02:02.7]} 6... Nc5 {[%clk
0:02:58]} 7. a4 {[%clk 0:02:00]} 7... a5 {[%clk 0:02:57.4]} 8. b3 {[%clk
0:01:59.6]} 8... e6 {[%clk 0:02:56.8]} 9. Bb2 {[%clk 0:02:00]} 9... Be7 {[%clk
0:02:56.7]} 10. Re1 {[%clk 0:02:00.1]} 10... O-O {[%clk 0:02:56.6]} 11. Nh4
{[%clk 0:01:59.3]} 11... Bg4 {[%clk 0:02:56.2]} 12. h3 {[%clk 0:01:59.6]} 12...
Bh5 {[%clk 0:02:56.4]} 13. g4 {[%clk 0:02:00]} 13... Nfd7 {[%clk 0:02:55.9]} 14.
Nhf3 {[%clk 0:01:51.7]} 14... Bg6 {[%clk 0:02:55.7]} 15. e4 {[%clk 0:01:52.6]}
15... Re8 {[%clk 0:02:50.1]} 16. e5 {[%clk 0:01:46.6]} 16... f6 {[%clk
0:02:46.5]} 17. exf6 {[%clk 0:01:42.4]} 17... Bxf6 {[%clk 0:02:46.1]} 18. Ne5
{[%clk 0:01:35.4]} 18... Nxe5 {[%clk 0:02:43.5]} 19. Bxe5 {[%clk 0:01:36.3]}
19... Nd7 {[%clk 0:02:43.2]} 20. Nf3 {[%clk 0:01:22.9]} 20... Nxe5 {[%clk
0:02:42.6]} 21. Nxe5 {[%clk 0:01:23.4]} 21... Qd6 {[%clk 0:02:42.7]} 22. Qe2
{[%clk 0:01:23.3]} 22... Bxe5 {[%clk 0:02:37.8]} 23. Qxe5 {[%clk 0:01:23]} 23...
Qxe5 {[%clk 0:02:38.7]} 24. Rxe5 {[%clk 0:01:23.1]} 24... Kf7 {[%clk 0:02:38.9]}
25. Rae1 {[%clk 0:01:22.2]} 25... Re7 {[%clk 0:02:34.4]} 26. Kh2 {[%clk
0:01:22.3]} 26... Rae8 {[%clk 0:02:31.9]} 27. Kg3 {[%clk 0:01:22.8]} 27... Kf8
{[%clk 0:02:32.3]} 28. f4 {[%clk 0:01:21.5]} 28... Bf7 {[%clk 0:02:32.4]} 29. h4
{[%clk 0:01:19.6]} 29... Rd7 {[%clk 0:02:30.6]} 30. g5 {[%clk 0:01:19.5]} 30...
Ke7 {[%clk 0:02:30.1]} 31. Bh3 {[%clk 0:01:19.5]} 31... Kd6 {[%clk 0:02:30.1]}
32. f5 {[%clk 0:01:18.6]} 32... Rde7 {[%clk 0:02:26.9]} 33. fxe6 {[%clk
0:01:14.4]} 33... Bxe6 {[%clk 0:02:26.9]} 34. Bxe6 {[%clk 0:01:08.4]} 34... Rxe6
{[%clk 0:02:27.8]} 35. Rxe6+ {[%clk 0:01:09]} 35... Rxe6 {[%clk 0:02:27.5]} 36.
Rxe6+ {[%clk 0:01:09.9]} 36... Kxe6 {[%clk 0:02:28.4]} 37. Kf4 {[%clk
0:01:10.5]} 37... b5 {[%clk 0:01:35.6]} 38. c3 {[%clk 0:01:01.4]} 38... bxa4
{[%clk 0:01:32.4]} 39. bxa4 {[%clk 0:01:00.8]} 39... c5 {[%clk 0:01:16.8]} 40.
h5 {[%clk 0:00:52.8]} 40... g6 {[%clk 0:01:14.9]} 41. h6 {[%clk 0:00:31.8]}
41... Kd6 {[%clk 0:01:08.6]} 42. d4 {[%clk 0:00:30.5]} 42... cxd4 {[%clk
0:00:58.5]} 43. cxd4 {[%clk 0:00:31.4]} 43... Ke6 {[%clk 0:00:58.4]} 44. Kg4
{[%clk 0:00:31.4]} 44... Kd6 {[%clk 0:00:57.2]} 45. Kf4 {[%clk 0:00:32.3]} 45...
Ke6 {[%clk 0:00:58.1]} 46. Kg4 {[%clk 0:00:32.4]} 46... Kd6 {[%clk 0:00:57.7]}
47. Kf4 {[%clk 0:00:33.3]} 1/2-1/2

[Event "*** Titled Tuesday Blitz"]
[Site "Chess.com"]
[Date "2020.11.03"]
[Round "7"]
[White "woodhy"]
[Black "GMTalks_Youtube"]
[Result "0-1"]
[WhiteElo "2465"]
[BlackElo "2599"]
[TimeControl "180+1"]
[EndTime "11:20:05 PST"]
[Termination "GMTalks_Youtube won by resignation"]

1. e4 {[%clk 0:03:00.9]} 1... e5 {[%clk 0:02:59.6]} 2. Nf3 {[%clk 0:02:58.8]}
2... Nc6 {[%clk 0:02:59.7]} 3. Bb5 {[%clk 0:02:57.4]} 3... a6 {[%clk 0:02:59.4]}
4. Bxc6 {[%clk 0:02:51.2]} 4... dxc6 {[%clk 0:02:58.7]} 5. O-O {[%clk
0:02:52.1]} 5... Bg4 {[%clk 0:02:51]} 6. h3 {[%clk 0:02:48.7]} 6... h5 {[%clk
0:02:50.1]} 7. d3 {[%clk 0:02:46.9]} 7... Qf6 {[%clk 0:02:47.5]} 8. Be3 {[%clk
0:02:45]} 8... Bxf3 {[%clk 0:02:32.1]} 9. Qxf3 {[%clk 0:02:44.1]} 9... Qxf3
{[%clk 0:02:32.7]} 10. gxf3 {[%clk 0:02:45]} 10... Bd6 {[%clk 0:02:31.3]} 11.
Nd2 {[%clk 0:02:44.7]} 11... Ne7 {[%clk 0:02:30.1]} 12. Rfb1 {[%clk 0:02:42.6]}
12... Ng6 {[%clk 0:02:24.5]} 13. Kf1 {[%clk 0:02:40.7]} 13... f5 {[%clk
0:02:11.6]} 14. Bg5 {[%clk 0:02:19]} 14... O-O {[%clk 0:02:03.4]} 15. Ke2 {[%clk
0:02:16.4]} 15... Rf7 {[%clk 0:01:47.9]} 16. Rg1 {[%clk 0:02:04.9]} 16... Kh7
{[%clk 0:01:30.9]} 17. Raf1 {[%clk 0:01:36.2]} 17... Nf8 {[%clk 0:01:17.8]} 18.
Nc4 {[%clk 0:01:07.6]} 18... Ne6 {[%clk 0:01:15.4]} 19. c3 {[%clk 0:00:57.8]}
19... b5 {[%clk 0:01:08]} 20. Ne3 {[%clk 0:00:51.4]} 20... f4 {[%clk 0:01:01.4]}
21. Nf5 {[%clk 0:00:48]} 21... Bf8 {[%clk 0:00:56.1]} 22. d4 {[%clk 0:00:26.3]}
22... g6 {[%clk 0:00:48.9]} 23. d5 {[%clk 0:00:11.6]} 23... cxd5 {[%clk
0:00:44.6]} 24. exd5 {[%clk 0:00:09.5]} 24... Nxg5 {[%clk 0:00:44.5]} 25. Rxg5
{[%clk 0:00:05.9]} 25... Rxf5 {[%clk 0:00:44.1]} 26. Rxf5 {[%clk 0:00:02.1]}
26... gxf5 {[%clk 0:00:43.9]} 27. Rg1 {[%clk 0:00:03]} 27... Be7 {[%clk
0:00:43.2]} 0-1

[Event "*** Titled Tuesday Blitz"]
[Site "Chess.com"]
[Date "2020.11.03"]
[Round "7"]
[White "ChSalas"]
[Black "GoltsevDmitry2000"]
[Result "0-1"]
[WhiteElo "2508"]
[BlackElo "2668"]
[TimeControl "180+1"]
[EndTime "11:20:07 PST"]
[Termination "GoltsevDmitry2000 won on time"]

1. d4 {[%clk 0:02:59.2]} 1... d5 {[%clk 0:02:59.7]} 2. Nf3 {[%clk 0:02:58.2]}
2... c6 {[%clk 0:02:57.2]} 3. Bf4 {[%clk 0:02:56.7]} 3... h6 {[%clk 0:02:55.8]}
4. e3 {[%clk 0:02:55.4]} 4... Bf5 {[%clk 0:02:56.2]} 5. Bd3 {[%clk 0:02:54]}
5... Bxd3 {[%clk 0:02:55.9]} 6. Qxd3 {[%clk 0:02:54.9]} 6... Nf6 {[%clk
0:02:56.6]} 7. Nbd2 {[%clk 0:02:53.6]} 7... Nbd7 {[%clk 0:02:56.9]} 8. O-O
{[%clk 0:02:50.9]} 8... e6 {[%clk 0:02:57.1]} 9. e4 {[%clk 0:02:47]} 9... dxe4
{[%clk 0:02:56.2]} 10. Nxe4 {[%clk 0:02:47]} 10... Nd5 {[%clk 0:02:56.5]} 11.
Nd6+ {[%clk 0:02:31.7]} 11... Bxd6 {[%clk 0:02:52.4]} 12. Bxd6 {[%clk
0:02:32.6]} 12... Qf6 {[%clk 0:02:44.2]} 13. Qa3 {[%clk 0:01:52.2]} 13... N7b6
{[%clk 0:02:40.4]} 14. b3 {[%clk 0:01:43]} 14... Nc8 {[%clk 0:02:35.6]} 15. Rfe1
{[%clk 0:01:32.9]} 15... Nxd6 {[%clk 0:02:34.2]} 16. Qxd6 {[%clk 0:01:33.1]}
16... Qe7 {[%clk 0:02:35.1]} 17. Qg3 {[%clk 0:01:21.8]} 17... O-O {[%clk
0:02:34.2]} 18. c4 {[%clk 0:01:16.4]} 18... Nf6 {[%clk 0:02:33.6]} 19. Ne5
{[%clk 0:01:06.8]} 19... Rad8 {[%clk 0:02:33.2]} 20. Qe3 {[%clk 0:01:06.9]}
20... Rd6 {[%clk 0:02:32.1]} 21. h3 {[%clk 0:00:59.4]} 21... Rfd8 {[%clk
0:02:31.7]} 22. Nf3 {[%clk 0:00:59.4]} 22... R6d7 {[%clk 0:02:27.2]} 23. Re2
{[%clk 0:00:58.1]} 23... a5 {[%clk 0:02:23.3]} 24. Rae1 {[%clk 0:00:57.8]} 24...
Qb4 {[%clk 0:02:20.6]} 25. g4 {[%clk 0:00:41.3]} 25... a4 {[%clk 0:02:17.7]} 26.
Kh1 {[%clk 0:00:35.6]} 26... Ra8 {[%clk 0:02:13.8]} 27. Ne5 {[%clk 0:00:26.5]}
27... Rdd8 {[%clk 0:02:12.6]} 28. g5 {[%clk 0:00:20.6]} 28... hxg5 {[%clk
0:02:10.9]} 29. Qxg5 {[%clk 0:00:21.5]} 29... Rxd4 {[%clk 0:02:07]} 30. Rg1
{[%clk 0:00:20.7]} 30... Ne8 {[%clk 0:02:07.4]} 31. Nxf7 {[%clk 0:00:17.5]}
31... Kxf7 {[%clk 0:02:03.6]} 32. Qg6+ {[%clk 0:00:17.5]} 32... Kf8 {[%clk
0:02:03.8]} 33. Rxe6 {[%clk 0:00:16.9]} 33... Rd7 {[%clk 0:02:01.3]} 34. Rge1
{[%clk 0:00:14.7]} 34... Rf7 {[%clk 0:01:59.1]} 35. R1e4 {[%clk 0:00:13.4]}
35... Nf6 {[%clk 0:01:49.1]} 36. Rh4 {[%clk 0:00:13]} 36... Kg8 {[%clk
0:01:46.3]} 37. Rxf6 {[%clk 0:00:07.7]} 37... Rxf6 {[%clk 0:01:45.7]} 38. Qh7+
{[%clk 0:00:07.9]} 38... Kf7 {[%clk 0:01:45.5]} 39. Qh5+ {[%clk 0:00:08]} 39...
Ke7 {[%clk 0:01:45.5]} 40. Re4+ {[%clk 0:00:07.5]} 40... Kd7 {[%clk 0:01:45.6]}
41. Qg4+ {[%clk 0:00:06.4]} 41... Kc7 {[%clk 0:01:37.9]} 42. Qxg7+ {[%clk
0:00:06.4]} 42... Kb6 {[%clk 0:01:38.1]} 43. Qxf6 {[%clk 0:00:06.8]} 43... axb3
{[%clk 0:01:38.6]} 44. axb3 {[%clk 0:00:07.7]} 44... Qxb3 {[%clk 0:01:39.5]} 45.
Qf7 {[%clk 0:00:07.7]} 45... Qxh3+ {[%clk 0:01:36.7]} 0-1

[Event "*** Titled Tuesday Blitz"]
[Site "Chess.com"]
[Date "2020.11.03"]
[Round "7"]
[White "Kaua18"]
[Black "alexrustemov"]
[Result "0-1"]
[WhiteElo "2339"]
[BlackElo "2680"]
[TimeControl "180+1"]
[EndTime "11:20:12 PST"]
[Termination "alexrustemov won on time"]

1. e4 {[%clk 0:02:58.8]} 1... e6 {[%clk 0:02:58.3]} 2. d4 {[%clk 0:02:56]} 2...
d5 {[%clk 0:02:58.5]} 3. Nd2 {[%clk 0:02:55.7]} 3... c5 {[%clk 0:02:56.8]} 4.
exd5 {[%clk 0:02:51.8]} 4... Qxd5 {[%clk 0:02:57.7]} 5. Ngf3 {[%clk 0:02:50.7]}
5... cxd4 {[%clk 0:02:58]} 6. Bc4 {[%clk 0:02:50.9]} 6... Qd7 {[%clk 0:02:58.4]}
7. O-O {[%clk 0:02:50.3]} 7... Nc6 {[%clk 0:02:58]} 8. Nb3 {[%clk 0:02:49.9]}
8... Nf6 {[%clk 0:02:58.1]} 9. Re1 {[%clk 0:02:49.3]} 9... a6 {[%clk 0:02:54.5]}
10. Nbxd4 {[%clk 0:02:47.7]} 10... Nxd4 {[%clk 0:02:53.5]} 11. Qxd4 {[%clk
0:02:48.6]} 11... Qxd4 {[%clk 0:02:52.7]} 12. Nxd4 {[%clk 0:02:48.7]} 12... Bd7
{[%clk 0:02:52.8]} 13. Bg5 {[%clk 0:02:44.6]} 13... Rc8 {[%clk 0:02:50.4]} 14.
Bb3 {[%clk 0:02:44.7]} 14... Be7 {[%clk 0:02:38.6]} 15. Rad1 {[%clk 0:02:41.5]}
15... h6 {[%clk 0:02:37.3]} 16. Bh4 {[%clk 0:02:28.7]} 16... b5 {[%clk
0:02:26.4]} 17. c3 {[%clk 0:02:26.5]} 17... a5 {[%clk 0:02:24]} 18. Bxf6 {[%clk
0:01:58]} 18... gxf6 {[%clk 0:02:08.5]} 19. a3 {[%clk 0:01:46.3]} 19... h5
{[%clk 0:02:07.1]} 20. Re3 {[%clk 0:01:45]} 20... h4 {[%clk 0:02:06.5]} 21. h3
{[%clk 0:01:44.8]} 21... Rh5 {[%clk 0:02:05.2]} 22. Red3 {[%clk 0:01:35.9]}
22... Rc7 {[%clk 0:02:01.7]} 23. Re1 {[%clk 0:01:23.1]} 23... Re5 {[%clk
0:02:00.8]} 24. Rde3 {[%clk 0:01:20.6]} 24... Rxe3 {[%clk 0:01:58]} 25. Rxe3
{[%clk 0:01:21.5]} 25... f5 {[%clk 0:01:55.2]} 26. Nf3 {[%clk 0:01:03.1]} 26...
Bf6 {[%clk 0:01:49.9]} 27. Ne5 {[%clk 0:01:01.6]} 27... Bc8 {[%clk 0:01:48.1]}
28. a4 {[%clk 0:00:54.7]} 28... b4 {[%clk 0:01:31.5]} 29. cxb4 {[%clk
0:00:42.1]} 29... axb4 {[%clk 0:01:32.4]} 30. Nc4 {[%clk 0:00:38.2]} 30... Ba6
{[%clk 0:01:29.3]} 31. Nd6+ {[%clk 0:00:33.2]} 31... Kf8 {[%clk 0:01:28.7]} 32.
Nb5 {[%clk 0:00:22.5]} 32... Rc1+ {[%clk 0:01:28]} 33. Kh2 {[%clk 0:00:20.7]}
33... Bxb2 {[%clk 0:01:28.5]} 34. Rd3 {[%clk 0:00:11.5]} 34... Be5+ {[%clk
0:01:25.3]} 35. g3 {[%clk 0:00:11.1]} 35... hxg3+ {[%clk 0:01:20.9]} 36. fxg3
{[%clk 0:00:12]} 36... Rb1 {[%clk 0:01:17.3]} 37. h4 {[%clk 0:00:05.7]} 37...
Bb7 {[%clk 0:01:16.1]} 38. Rd8+ {[%clk 0:00:01.2]} 38... Ke7 {[%clk 0:01:13]}
39. Rd1 {[%clk 0:00:02.1]} 39... Rxb3 {[%clk 0:01:12.6]} 0-1

[Event "*** Titled Tuesday Blitz"]
[Site "Chess.com"]
[Date "2020.11.03"]
[Round "7"]
[White "niki_2003"]
[Black "HouseOfDurin"]
[Result "1-0"]
[WhiteElo "1970"]
[BlackElo "2193"]
[TimeControl "180+1"]
[EndTime "11:20:14 PST"]
[Termination "niki_2003 won by resignation"]

1. d4 {[%clk 0:02:55.8]} 1... Nf6 {[%clk 0:02:58.9]} 2. c4 {[%clk 0:02:56]} 2...
c5 {[%clk 0:02:59.3]} 3. d5 {[%clk 0:02:55.5]} 3... b5 {[%clk 0:02:59.9]} 4. Qc2
{[%clk 0:02:54.3]} 4... bxc4 {[%clk 0:02:59.3]} 5. e4 {[%clk 0:02:54.1]} 5... d6
{[%clk 0:02:58]} 6. Bxc4 {[%clk 0:02:54.6]} 6... Nbd7 {[%clk 0:02:57]} 7. Nc3
{[%clk 0:02:54.9]} 7... g6 {[%clk 0:02:57.4]} 8. Nf3 {[%clk 0:02:54.5]} 8... Bg7
{[%clk 0:02:57.8]} 9. O-O {[%clk 0:02:54.9]} 9... O-O {[%clk 0:02:58.3]} 10. Re1
{[%clk 0:02:53.4]} 10... Ng4 {[%clk 0:02:55.6]} 11. h3 {[%clk 0:02:47.2]} 11...
Nge5 {[%clk 0:02:55.8]} 12. Nd2 {[%clk 0:02:45.6]} 12... Nxc4 {[%clk 0:02:54.6]}
13. Nxc4 {[%clk 0:02:45.3]} 13... Ne5 {[%clk 0:02:36.5]} 14. Nxe5 {[%clk
0:02:42.4]} 14... Bxe5 {[%clk 0:02:37.4]} 15. f4 {[%clk 0:02:42.9]} 15... Bg7
{[%clk 0:02:34.4]} 16. e5 {[%clk 0:02:42.3]} 16... Bf5 {[%clk 0:02:31.6]} 17.
Qf2 {[%clk 0:02:35.1]} 17... dxe5 {[%clk 0:02:17.2]} 18. fxe5 {[%clk 0:02:34.1]}
18... c4 {[%clk 0:01:59.7]} 19. Be3 {[%clk 0:02:29.5]} 19... Bxe5 {[%clk
0:01:40]} 20. Bxa7 {[%clk 0:02:09.6]} 20... Bf6 {[%clk 0:01:32.1]} 21. Rad1
{[%clk 0:01:58.1]} 21... Qa5 {[%clk 0:01:27.4]} 22. Bb6 {[%clk 0:01:55.6]} 22...
Qa6 {[%clk 0:01:21.8]} 23. Bc5 {[%clk 0:01:50.2]} 23... Rfe8 {[%clk 0:01:01.4]}
24. g4 {[%clk 0:01:38.5]} 24... Bd3 {[%clk 0:01:01.3]} 25. d6 {[%clk 0:01:35.1]}
25... Bxc3 {[%clk 0:00:55]} 26. d7 {[%clk 0:01:16.4]} 26... Bxe1 {[%clk
0:00:49]} 27. dxe8=Q+ {[%clk 0:01:16.5]} 27... Rxe8 {[%clk 0:00:49.2]} 28. Rxe1
{[%clk 0:01:15.6]} 28... e5 {[%clk 0:00:32.1]} 29. Bd4 {[%clk 0:01:07.6]} 29...
f6 {[%clk 0:00:29.1]} 30. g5 {[%clk 0:01:02.9]} 30... Qc6 {[%clk 0:00:14.6]} 31.
gxf6 {[%clk 0:00:59.6]} 31... Kf7 {[%clk 0:00:12]} 32. Bxe5 {[%clk 0:00:54.3]}
32... Re6 {[%clk 0:00:11.5]} 33. Qa7+ {[%clk 0:00:52.8]} 33... Kf8 {[%clk
0:00:08.5]} 34. Qg7+ {[%clk 0:00:51.4]} 34... Ke8 {[%clk 0:00:08.9]} 35. f7+
{[%clk 0:00:51.8]} 35... Kd7 {[%clk 0:00:08.7]} 36. f8=Q+ {[%clk 0:00:51.5]} 1-0

[Event "*** Titled Tuesday Blitz"]
[Site "Chess.com"]
[Date "2020.11.03"]
[Round "7"]
[White "Godzillator"]
[Black "maximnovik"]
[Result "0-1"]
[WhiteElo "2325"]
[BlackElo "2541"]
[TimeControl "180+1"]
[EndTime "11:20:15 PST"]
[Termination "maximnovik won on time"]

1. d4 {[%clk 0:03:00.9]} 1... Nf6 {[%clk 0:02:58.5]} 2. c4 {[%clk 0:03:01]} 2...
g6 {[%clk 0:02:58.6]} 3. Nc3 {[%clk 0:03:01.3]} 3... Bg7 {[%clk 0:02:59]} 4. e4
{[%clk 0:03:01.7]} 4... d6 {[%clk 0:02:59.5]} 5. Be2 {[%clk 0:03:02.1]} 5... O-O
{[%clk 0:02:59.9]} 6. Bg5 {[%clk 0:03:02.7]} 6... Na6 {[%clk 0:02:52.4]} 7. f4
{[%clk 0:03:01.9]} 7... c6 {[%clk 0:02:48.7]} 8. Qd2 {[%clk 0:03:01.7]} 8... h6
{[%clk 0:02:44.2]} 9. Bh4 {[%clk 0:03:01.3]} 9... Nc7 {[%clk 0:02:43.5]} 10. Bf3
{[%clk 0:03:00.9]} 10... Ne6 {[%clk 0:02:38.6]} 11. Nge2 {[%clk 0:02:59]} 11...
Nd7 {[%clk 0:02:29.9]} 12. O-O {[%clk 0:02:47.4]} 12... c5 {[%clk 0:02:29.6]}
13. dxc5 {[%clk 0:02:39.3]} 13... Ndxc5 {[%clk 0:02:24.7]} 14. Rad1 {[%clk
0:02:30.3]} 14... Bd7 {[%clk 0:02:20.4]} 15. Nd5 {[%clk 0:02:24.5]} 15... Re8
{[%clk 0:02:20.8]} 16. b4 {[%clk 0:02:19.6]} 16... Na4 {[%clk 0:02:14.9]} 17. f5
{[%clk 0:02:11.1]} 17... Nc7 {[%clk 0:02:06]} 18. fxg6 {[%clk 0:02:08.2]} 18...
fxg6 {[%clk 0:02:05.5]} 19. Rc1 {[%clk 0:01:42.6]} 19... Ne6 {[%clk 0:02:02.8]}
20. Bg4 {[%clk 0:01:34.2]} 20... Nb6 {[%clk 0:01:57.8]} 21. Nxb6 {[%clk
0:01:30.8]} 21... Qxb6+ {[%clk 0:01:56.9]} 22. Bf2 {[%clk 0:01:30.4]} 22... Qd8
{[%clk 0:01:52.1]} 23. Nf4 {[%clk 0:00:57]} 23... Nxf4 {[%clk 0:01:46.9]} 24.
Qxf4 {[%clk 0:00:56.9]} 24... Kh7 {[%clk 0:01:38]} 25. Bxd7 {[%clk 0:00:50.3]}
25... Qxd7 {[%clk 0:01:37.9]} 26. Be3 {[%clk 0:00:46.3]} 26... Rf8 {[%clk
0:01:37]} 27. Qh4 {[%clk 0:00:41.5]} 27... Qe6 {[%clk 0:01:37.2]} 28. Kh1 {[%clk
0:00:34]} 28... Rxf1+ {[%clk 0:01:35.8]} 29. Rxf1 {[%clk 0:00:33.2]} 29... Qxc4
{[%clk 0:01:36.3]} 30. Kg1 {[%clk 0:00:22.3]} 30... Rf8 {[%clk 0:01:25.6]} 31.
Rxf8 {[%clk 0:00:18.1]} 31... Bxf8 {[%clk 0:01:25]} 32. h3 {[%clk 0:00:17.9]}
32... Qxb4 {[%clk 0:01:14.8]} 33. Qf2 {[%clk 0:00:15.7]} 33... Bg7 {[%clk
0:01:09.4]} 34. Qf3 {[%clk 0:00:07.6]} 34... Qb1+ {[%clk 0:01:08.5]} 35. Kh2
{[%clk 0:00:06.4]} 35... Qxa2 {[%clk 0:01:08.6]} 36. Bf4 {[%clk 0:00:04.2]}
36... Qe6 {[%clk 0:01:05.6]} 37. Qd3 {[%clk 0:00:03.5]} 37... a5 {[%clk
0:01:03.3]} 38. Qb5 {[%clk 0:00:02.3]} 38... Qxe4 {[%clk 0:01:02.5]} 39. Bg3
{[%clk 0:00:02.7]} 39... a4 {[%clk 0:01:01.8]} 0-1

[Event "*** Titled Tuesday Blitz"]
[Site "Chess.com"]
[Date "2020.11.03"]
[Round "7"]
[White "kirillshevchenko"]
[Black "Rakhimzhan_Alen"]
[Result "1-0"]
[WhiteElo "2866"]
[BlackElo "2620"]
[TimeControl "180+1"]
[EndTime "11:20:17 PST"]
[Termination "kirillshevchenko won by resignation"]

1. e4 {[%clk 0:03:00.9]} 1... e5 {[%clk 0:02:59]} 2. Nf3 {[%clk 0:02:59.1]} 2...
Nc6 {[%clk 0:02:59.2]} 3. Bb5 {[%clk 0:02:58.7]} 3... Nf6 {[%clk 0:02:59.3]} 4.
O-O {[%clk 0:02:50.9]} 4... Nxe4 {[%clk 0:02:56.5]} 5. Re1 {[%clk 0:02:49.8]}
5... Nd6 {[%clk 0:02:55.3]} 6. Nxe5 {[%clk 0:02:49.6]} 6... Nxe5 {[%clk
0:02:55.3]} 7. Rxe5+ {[%clk 0:02:48.9]} 7... Be7 {[%clk 0:02:55.8]} 8. Bd3
{[%clk 0:02:47.7]} 8... O-O {[%clk 0:02:56.3]} 9. Nc3 {[%clk 0:02:43.2]} 9...
Bf6 {[%clk 0:02:53.8]} 10. Re3 {[%clk 0:02:40.4]} 10... g6 {[%clk 0:02:54]} 11.
b3 {[%clk 0:02:40.1]} 11... Re8 {[%clk 0:02:48.9]} 12. Ba3 {[%clk 0:02:35.4]}
12... Rxe3 {[%clk 0:02:45.2]} 13. fxe3 {[%clk 0:02:35.1]} 13... Ne8 {[%clk
0:02:37.1]} 14. Qf3 {[%clk 0:02:35]} 14... c6 {[%clk 0:02:29.9]} 15. Rf1 {[%clk
0:02:18.8]} 15... d5 {[%clk 0:02:29.6]} 16. Ne2 {[%clk 0:02:18.6]} 16... Be6
{[%clk 0:02:23.4]} 17. Nf4 {[%clk 0:02:07.5]} 17... Qd7 {[%clk 0:02:23]} 18. e4
{[%clk 0:01:38.5]} 18... dxe4 {[%clk 0:02:20.6]} 19. Bxe4 {[%clk 0:01:28.2]}
19... Bf5 {[%clk 0:02:08]} 20. Bxf5 {[%clk 0:01:09.3]} 20... Qxf5 {[%clk
0:02:07.8]} 21. Nd3 {[%clk 0:01:06.9]} 21... Qxf3 {[%clk 0:01:57.6]} 22. Rxf3
{[%clk 0:01:07.8]} 22... b6 {[%clk 0:01:57.1]} 23. g4 {[%clk 0:01:06.7]} 23...
Kg7 {[%clk 0:01:53.8]} 24. Nf2 {[%clk 0:00:58.3]} 24... Rd8 {[%clk 0:01:27.9]}
25. Ne4 {[%clk 0:00:54.2]} 25... Bd4+ {[%clk 0:01:27.9]} 26. Kg2 {[%clk
0:00:52]} 26... Nf6 {[%clk 0:01:26.8]} 27. Be7 {[%clk 0:00:49.3]} 27... Nxe4
{[%clk 0:00:56]} 28. Bxd8 {[%clk 0:00:49.3]} 28... c5 {[%clk 0:00:45.5]} 29. c3
{[%clk 0:00:46.7]} 29... Be5 {[%clk 0:00:37.5]} 30. Re3 {[%clk 0:00:46.8]} 30...
f5 {[%clk 0:00:32.5]} 31. gxf5 {[%clk 0:00:47.2]} 31... gxf5 {[%clk 0:00:32.6]}
32. d3 {[%clk 0:00:47.7]} 32... Bf4 {[%clk 0:00:29.5]} 33. Rf3 {[%clk
0:00:47.8]} 33... Bg5 {[%clk 0:00:28.1]} 34. dxe4 {[%clk 0:00:46]} 34... Bxd8
{[%clk 0:00:27.7]} 35. Rxf5 {[%clk 0:00:46.1]} 35... Kg6 {[%clk 0:00:21.4]} 36.
Kf3 {[%clk 0:00:45.4]} 36... Bf6 {[%clk 0:00:21.2]} 37. c4 {[%clk 0:00:44.7]}
37... Bd4 {[%clk 0:00:20.4]} 38. h4 {[%clk 0:00:44.7]} 38... h6 {[%clk
0:00:19.7]} 39. h5+ {[%clk 0:00:44.7]} 39... Kg7 {[%clk 0:00:20.2]} 40. e5
{[%clk 0:00:44.1]} 1-0